bitfinex/quotes_SOLUSD_20260115
["timestamp","ask_amount","ask_price","bid_price","bid_amount"]
[1768487357511,0.31980225,144.91,144.89,10.90335914]
[1768487358193,0.31980225,144.91,144.9,4.00167187]
[1768487358397,0.31980225,144.91,144.89,11.20970477]
[1768487358908,0.01345662,144.91,144.89,7.2080329]
[1768487359110,0.01345662,144.91,144.89,11.20970477]
[1768487359908,1.38881097,144.95,144.9,4.00167187]
[1768487360085,1.38881097,144.95,144.91,4.00167187]
[1768487360283,1.38881097,144.96,144.91,4.00167187]
[1768487360498,1.38881097,144.97,144.93,4.00167187]
[1768487361207,1.48136666,144.98,144.93,4.00167187]
[1768487361506,1.48136666,144.98,144.94,4.00167187]
[1768487361686,1.48136666,144.98,144.94,10.90105226]
[1768487362086,1.48136666,144.98,144.94,6.94039575]
[1768487362302,1.48136666,144.98,144.94,10.94206762]
[1768487362906,24.95971629,145.0,144.95,0.04101536]
[1768487363113,24.95971629,145.0,144.95,4.04268723]
[1768487363295,1.48136666,144.99,144.95,4.04268723]
[1768487363697,1.48136666,144.99,144.95,10.94153717]
[1768487363894,6.89667776,145.0,144.96,0.07239867]
[1768487364089,12.37971629,145.0,144.95,7.03651374]
[1768487364289,1.58580868,144.99,144.95,11.03818561]
[1768487364491,1.58580868,144.99,144.95,0.1376638]
[1768487364792,1.58580868,144.97,144.93,4.13933567]
[1768487365501,1.58580868,144.97,144.93,11.03918309]
[1768487365916,1.58580868,144.97,144.93,7.03751122]
[1768487366109,1.58580868,144.97,144.93,11.03918309]
[1768487367610,1.58580868,144.97,144.94,4.00167187]
[1768487368695,1.58580868,144.97,144.93,11.03918309]
[1768487368891,1.58580868,144.97,144.93,7.03751122]
[1768487369196,1.58580868,144.97,144.93,11.03918309]
[1768487369417,1.58580868,144.95,144.88,17.2554433]
[1768487369623,1.58580868,144.95,144.91,6.90081208]
[1768487369624,5.52748056,144.95,144.91,6.90081208]
[1768487369797,4.00167187,144.94,144.89,0.35437926]
[1768487369998,4.00167187,144.94,144.89,7.25603491]
[1768487370410,4.00167187,144.93,144.89,7.25615496]
[1768487370605,24.14303333,144.97,144.89,4.35605113]
[1768487370838,4.00167187,144.95,144.9,0.38465066]
[1768487371010,4.00167187,144.96,144.91,0.38465066]
[1768487371211,4.00167187,144.95,144.91,0.38465066]
[1768487371411,10.90067822,144.95,144.91,7.28541287]
[1768487371613,5.58748055,144.94,144.91,6.90076221]
[1768487372319,5.58748055,144.94,144.9,7.31580089]
[1768487374022,4.00167187,144.93,144.9,7.31580089]
[1768487374428,4.00167187,144.93,144.9,6.90122654]
[1768487374726,5.58748055,144.94,144.9,7.40352551]
[1768487376106,1.58580868,144.95,144.91,0.55940434]
[1768487376421,5.58748055,144.96,144.91,0.55940434]
[1768487376827,1.58580868,144.96,144.91,0.55940434]
[1768487377027,8.48334529,144.98,144.92,0.55940434]
[1768487377401,12.48501716,144.98,144.93,0.58746604]
[1768487377604,4.00167187,144.97,144.93,0.58746604]
[1768487377927,5.58748055,144.98,144.93,0.58746604]
[1768487378230,4.00167187,144.97,144.93,7.48698747]
[1768487378426,1.58580868,144.98,144.93,7.48698747]
[1768487378427,5.58748055,144.98,144.93,7.48698747]
[1768487380718,5.58748055,144.98,144.93,11.48865934]
[1768487382431,1.58580868,144.98,144.93,11.48865934]
[1768487387136,1.58580868,144.97,144.93,7.48698747]
[1768487387316,1.58580868,144.97,144.93,11.48865934]
[1768487387729,1.58580868,144.97,144.94,0.85095269]
[1768487388117,1.58580868,144.99,144.95,4.87733754]
[1768487388318,1.58580868,145.0,144.96,4.87733754]
[1768487388844,1.58580868,145.0,144.97,4.00167187]
[1768487389018,2.05580867,145.01,144.97,4.87733754]
[1768487389339,2.05580867,145.01,144.98,6.8975031]
[1768487389718,2.05580867,145.01,144.97,7.77347282]
[1768487390031,1.58580868,145.0,144.96,6.89831705]
[1768487390238,1.58580868,144.99,144.95,19.47871832]
[1768487390614,1.58580868,144.98,144.95,19.47871832]
[1768487390814,1.58580868,144.98,144.94,6.89923725]
[1768487391131,1.58580868,144.98,144.95,6.89880868]
[1768487392931,1.58580868,144.98,144.94,10.90092617]
[1768487393124,1.58580868,144.98,144.94,6.8992543]
[1768487395419,10.89875005,144.99,144.94,6.8992543]
[1768487395420,1.92173343,144.97,144.94,6.8992543]
[1768487397023,1.92173343,144.97,144.94,11.98661878]
[1768487397330,1.92173343,144.99,144.94,11.98661878]
[1768487397512,2.39173342,145.01,144.97,1.10770937]
[1768487397714,2.39173342,145.01,144.98,4.00167187]
[1768487398135,2.39173342,145.01,144.96,1.12947325]
[1768487398317,2.39173342,145.01,144.97,4.00167187]
[1768487398717,2.39173342,145.01,144.97,10.89929001]
[1768487401828,11.36788306,145.01,144.95,12.73921811]
[1768487402028,4.00167187,144.99,144.94,1.83863805]
[1768487402227,4.00167187,144.99,144.93,5.84030992]
[1768487402440,4.00167187,144.99,144.93,1.83863805]
[1768487402636,4.00167187,144.99,144.93,5.84030992]
[1768487402943,4.00167187,144.99,144.94,6.89923705]
[1768487403135,1.92173343,144.98,144.94,6.89923705]
[1768487403366,1.92173343,144.98,144.93,12.74003774]
[1768487403637,1.92173343,144.98,144.93,8.73836587]
[1768487403836,1.92173343,144.98,144.94,5.84030992]
[1768487404224,1.92173343,145.0,144.96,5.84030992]
[1768487404430,0.46999999,145.01,144.98,5.84030992]
[1768487404624,0.46999999,145.01,144.95,12.58]
[1768487404625,1.92173343,145.0,144.95,18.42030992]
[1768487404918,1.92173343,144.99,144.95,10.90030734]
[1768487405344,0.46999999,145.01,144.99,1.83863805]
[1768487405534,6.89484026,145.04,144.95,36.72596213]
[1768487405535,1.92173343,145.05,145.0,5.84030992]
[1768487405719,1.92173343,145.05,145.0,1.83863805]
[1768487405923,1.92173343,145.04,145.0,1.83863805]
[1768487406123,1.92173343,145.03,144.99,5.84030992]
[1768487406342,1.92173343,145.0,144.95,38.56460018]
[1768487406644,4.00167187,144.99,144.94,10.90091876]
[1768487406847,4.00167187,145.04,144.92,12.58]
[1768487406848,1.92173343,144.97,144.92,1.83863805]
[1768487407144,1.92173343,144.97,144.93,5.84030992]
[1768487407321,1.92173343,144.99,144.95,5.84030992]
[1768487407521,4.00167187,145.01,144.92,24.15125585]
[1768487407522,1.92173343,145.01,144.97,4.00167187]
[1768487407722,1.92173343,145.01,144.97,1.83863805]
[1768487407919,1.92173343,145.0,144.95,1.83863805]
[1768487408143,1.92173343,144.98,144.93,5.84030992]
[1768487408538,1.92173343,144.98,144.94,4.00167187]
[1768487409043,1.92173343,145.0,144.96,5.84030992]
[1768487409841,1.92173343,144.99,144.95,6.89893066]
[1768487410150,1.92173343,144.96,144.93,6.89956646]
[1768487410449,1.92173343,145.01,144.96,1.83863805]
[1768487410627,1.92173343,144.99,144.94,12.73971078]
[1768487410832,1.92173343,144.98,144.94,6.89940086]
[1768487411032,1.92173343,144.97,144.94,6.89940086]
[1768487411230,1.92173343,145.0,144.94,12.73971078]
[1768487411431,34.47270754,145.05,144.97,4.39504321]
[1768487411432,1.92173343,145.05,144.97,4.39504321]
[1768487411630,1.92173343,145.04,144.99,1.83863805]
[1768487411830,1.92173343,145.04,145.0,2.55640516]
[1768487412030,4.47813859,145.04,144.97,1.83863805]
[1768487412237,1.92173343,145.03,144.98,2.55640516]
[1768487412432,1.92173343,145.03,145.0,2.55640516]
[1768487412641,1.92173343,145.05,145.01,2.55640516]
[1768487412851,1.92173343,145.04,145.0,2.55640516]
[1768487413039,1.92173343,145.02,144.96,12.58]
[1768487413238,1.92173343,144.99,144.93,17.24925862]
[1768487413548,1.92173343,144.99,144.94,6.89934788]
[1768487413728,1.92173343,144.99,144.95,9.45520641]
[1768487413929,1.92173343,144.99,144.95,6.89880125]
[1768487414150,1.92173343,145.03,144.97,2.55640516]
[1768487414350,1.92173343,145.03,144.99,2.55640516]
[1768487414539,1.92173343,145.03,145.0,2.55640516]
[1768487414743,1.92173343,145.03,144.98,1.83863805]
[1768487414945,4.47813859,145.02,144.97,6.89768406]
[1768487415130,1.92173343,145.0,144.97,6.89768406]
[1768487415526,8.81642566,145.04,144.99,4.39504321]
[1768487415749,1.92173343,145.03,144.98,6.89739227]
[1768487416049,1.92173343,145.03,144.99,2.55640516]
[1768487416345,1.92173343,145.01,144.96,9.45456429]
[1768487416532,1.92173343,145.0,144.96,9.45456429]
[1768487416732,1.92173343,144.99,144.95,6.89892578]
[1768487416927,1.92173343,144.99,144.95,9.45533094]
[1768487417139,1.92173343,144.99,144.96,2.55640516]
[1768487417332,1.92173343,145.01,144.98,2.55640516]
[1768487418449,1.92173343,145.01,144.97,2.55640516]
[1768487418654,1.92173343,145.0,144.95,22.03533094]
[1768487418851,1.92173343,144.98,144.93,6.8998827]
[1768487419148,1.92173343,144.98,144.94,2.55640516]
[1768487420138,1.92173343,144.98,144.95,2.55640516]
[1768487420346,1.92173343,145.0,144.96,2.55640516]
[1768487420748,2.21786291,145.03,144.99,2.55640516]
[1768487420941,2.21786291,145.03,145.0,9.45290594]
[1768487421253,2.21786291,145.03,144.99,6.89682999]
[1768487421438,2.21786291,145.0,144.95,6.89862183]
[1768487421640,2.21786291,144.98,144.93,9.10097627]
[1768487421952,2.21786291,144.98,144.93,9.45610965]
[1768487422159,2.21786291,144.97,144.93,9.45610965]
[1768487422355,2.21786291,144.97,144.92,6.90030714]
[1768487422557,2.21786291,144.97,144.92,9.4567123]
[1768487422750,2.21786291,144.97,144.92,6.90030714]
[1768487422949,2.21786291,144.94,144.89,19.45526306]
[1768487423130,9.1164824,144.96,144.9,2.20127178]
[1768487423454,4.77426807,144.95,144.89,11.65910983]
[1768487423753,2.21786291,144.93,144.89,6.90143289]
[1768487424058,2.21786291,144.92,144.87,24.24008961]
[1768487424236,4.77426807,144.92,144.87,24.24008961]
[1768487424434,2.17345272,144.95,144.91,6.90059961]
[1768487424838,2.17345272,144.95,144.91,9.45700477]
[1768487425043,9.07239024,144.95,144.9,9.11860799]
[1768487425243,2.17345272,144.92,144.88,12.58]
[1768487425455,2.17345272,144.92,144.88,22.03825832]
[1768487425636,2.11345273,144.92,144.88,22.03825832]
[1768487425831,2.11345273,144.92,144.88,19.48185316]
[1768487426055,0.46999999,144.97,144.9,11.67497824]
[1768487426255,2.55640516,144.96,144.9,9.11857308]
[1768487426556,3.02640515,144.97,144.91,4.77389227]
[1768487426742,9.92457181,144.97,144.91,4.77389227]
[1768487426937,9.92457181,144.97,144.91,9.11816123]
[1768487427131,2.55640516,144.96,144.9,6.90115168]
[1768487427337,2.55640516,144.95,144.89,2.21748711]
[1768487427547,2.17345272,144.93,144.89,2.55640516]
[1768487427752,2.17345272,144.92,144.87,2.21748711]
[1768487427946,2.17345272,144.92,144.86,22.60170447]
[1768487427947,4.72985788,144.9,144.85,8.36408255]
[1768487428130,2.17345272,144.9,144.86,2.55640516]
[1768487428656,2.17345272,144.94,144.89,4.77389227]
[1768487428842,2.17345272,144.94,144.9,2.55640516]
[1768487429041,2.17345272,144.94,144.9,6.90114238]
[1768487429357,2.17345272,144.94,144.9,9.45754754]
[1768487429561,9.07286417,144.94,144.89,11.67549927]
[1768487429766,2.64345271,144.96,144.93,2.55640516]
[1768487429944,2.64345271,144.96,144.94,2.55640516]
[1768487430140,0.46999999,144.96,144.94,2.55640516]
[1768487430766,0.46999999,144.96,144.92,2.21748711]
[1768487430948,0.46999999,144.96,144.93,9.45620163]
[1768487431149,2.17345272,145.03,144.96,2.21748711]
[1768487431359,2.17345272,145.03,144.95,2.55640516]
[1768487431360,2.17345272,145.03,145.0,2.55640516]
[1768487431662,2.17345272,145.0,144.94,4.77389227]
[1768487431864,2.17345272,145.02,144.96,2.21748711]
[1768487432069,2.17345272,145.02,144.97,4.77389227]
[1768487432267,4.72985788,145.02,144.97,2.21748711]
[1768487432474,2.17345272,145.02,144.97,4.77389227]
[1768487432779,0.46999999,145.03,144.99,4.77389227]
[1768487432941,0.46999999,145.03,145.0,2.21748711]
[1768487433271,0.46999999,145.03,145.0,11.67042317]
[1768487433559,0.46999999,145.03,145.01,2.55640516]
[1768487433769,1e-08,145.03,145.02,2.55640516]
[1768487434250,2.17345272,145.07,145.02,4.77389227]
[1768487434457,17.7011806,145.09,145.03,4.77389227]
[1768487434458,9.53584598,145.09,145.03,4.77389227]
[1768487434762,2.17345272,145.08,145.03,4.77389227]
[1768487435061,2.17345272,145.08,145.0,36.71791021]
[1768487435062,2.17345272,145.07,145.02,9.45168957]
[1768487435264,2.17345272,145.06,145.01,11.66961311]
[1768487435561,2.17345272,145.06,145.01,15.6286931]
[1768487435735,16.05174527,145.08,145.02,15.62839308]
[1768487435941,2.64345271,145.08,145.04,2.21748711]
[1768487436166,0.46999999,145.08,145.04,2.21748711]
[1768487436646,0.46999999,145.08,145.05,8.73297226]
[1768487437157,0.46999999,145.08,145.03,15.62792881]
[1768487437348,0.46999999,145.08,145.05,15.62712581]
[1768487437549,15.57979347,145.12,145.07,6.51548515]
[1768487437762,2.17345272,145.11,145.06,2.21748711]
[1768487437964,2.17345272,145.11,145.06,8.73297226]
[1768487438566,2.17345272,145.11,145.06,9.11104399]
[1768487438743,9.06501163,145.11,145.06,9.11104399]
[1768487438949,4.34360141,145.1,145.06,15.62652914]
[1768487439262,6.51705413,145.1,145.05,6.89405133]
[1768487439464,2.17345272,145.09,145.04,21.31297226]
[1768487439760,8.68893787,145.08,145.04,12.58]
[1768487439952,8.68893787,145.08,145.03,6.51548515]
[1768487440255,2.17345272,145.07,145.02,2.21748711]
[1768487440462,2.17345272,145.06,145.02,2.21748711]
[1768487440649,2.17345272,145.06,145.02,15.62845958]
[1768487440880,2.17345272,145.06,145.02,13.41097247]
[1768487441657,2.17345272,145.06,145.02,6.89548732]
[1768487441857,2.17345272,145.06,145.03,6.51548515]
[1768487442466,9.06637817,145.08,145.03,13.41058282]
[1768487442663,2.64345271,145.09,145.06,6.51548515]
[1768487442850,2.64345271,145.09,145.05,6.51548515]
[1768487443052,2.17345272,145.08,145.03,6.89509767]
[1768487443365,8.68893787,145.08,145.03,13.41058282]
[1768487443551,0.46999999,145.09,145.05,6.51548515]
[1768487443751,0.46999999,145.09,145.06,6.51548515]
[1768487443942,0.46999999,145.09,145.07,6.51548515]
[1768487444353,0.46999999,145.09,145.08,6.51548515]
[1768487445066,0.46999999,145.09,145.06,9.11117042]
[1768487445259,0.2,145.13,145.09,2.21748711]
[1768487445452,0.2,145.13,145.11,6.51548515]
[1768487445658,0.2,145.13,145.11,1e-08]
[1768487445965,2.37345272,145.13,145.1,6.51548515]
[1768487446168,0.2,145.13,145.1,6.51548515]
[1768487446347,0.2,145.13,145.11,6.51548515]
[1768487446549,0.46999999,145.18,145.13,2.21748711]
[1768487446874,2.64345271,145.18,145.13,2.21748711]
[1768487447067,2.64345271,145.18,145.13,6.51548515]
[1768487447390,2.17345272,145.17,145.14,6.51548515]
[1768487447749,2.17345272,145.17,145.12,2.21748711]
[1768487447956,2.17345272,145.17,145.14,6.51548515]
[1768487448951,0.46999999,145.18,145.16,6.51548515]
[1768487449150,0.46999999,145.18,145.17,6.51548515]
[1768487449346,1e-08,145.18,145.17,6.51548515]
[1768487449550,1e-08,145.18,145.14,6.889806]
[1768487449752,1e-08,145.18,145.15,6.51548515]
[1768487449954,1e-08,145.18,145.13,2.21748711]
[1768487450265,1e-08,145.18,145.16,6.51548515]
[1768487450456,1e-08,145.18,145.15,6.88927694]
[1768487450457,1e-08,145.18,145.17,6.51548515]
[1768487450957,2.17345272,145.21,145.17,6.51548515]
[1768487451161,2.53308809,145.22,145.18,6.51548515]
[1768487451564,2.53308809,145.22,145.17,2.36688932]
[1768487451766,2.53308809,145.22,145.18,6.51548515]
[1768487452157,2.53308809,145.22,145.18,6.88786954]
[1768487452358,2.53308809,145.22,145.18,13.40335469]
[1768487452882,0.2,145.22,145.18,6.88786954]
[1768487453053,0.2,145.22,145.19,6.51548515]
[1768487453261,0.2,145.22,145.18,9.25475886]
[1768487453451,0.2,145.22,145.19,6.51548515]
[1768487453857,0.2,145.22,145.2,6.51548515]
[1768487454082,0.2,145.22,145.21,6.51548515]
[1768487454978,0.2,145.22,145.2,6.88701154]
[1768487455179,0.2,145.22,145.2,13.40249669]
[1768487455568,0.2,145.22,145.21,6.51548515]
[1768487455774,2.33308809,145.24,145.21,6.51548515]
[1768487455990,2.33308809,145.24,145.2,13.40249669]
[1768487456591,5.76905511,145.26,145.22,6.51548515]
[1768487456761,12.65330182,145.26,145.21,2.36688932]
[1768487457084,2.33308809,145.24,145.2,6.88701154]
[1768487457265,2.33308809,145.24,145.2,13.40249669]
[1768487457460,3.43596702,145.26,145.21,8.88237447]
[1768487457783,5.76905511,145.26,145.23,6.51548515]
[1768487457975,5.76905511,145.26,145.21,2.36688932]
[1768487458185,5.76905511,145.26,145.21,15.76887667]
[1768487458572,5.76905511,145.26,145.21,9.25339152]
[1768487458902,5.76905511,145.26,145.23,6.51548515]
[1768487459465,5.76905511,145.26,145.24,6.51548515]
[1768487459896,2.33308809,145.3,145.25,8.88237447]
[1768487460070,2.33308809,145.3,145.26,6.51548515]
[1768487460391,2.33308809,145.3,145.23,2.36688932]
[1768487460585,2.33308809,145.29,145.26,6.51548515]
[1768487460778,2.33308809,145.31,145.27,6.51548515]
[1768487460980,2.33308809,145.31,145.26,6.88403071]
[1768487461191,2.33308809,145.31,145.27,6.51548515]
[1768487461493,2.33308809,145.33,145.28,6.51548515]
[1768487461682,2.33308809,145.28,145.21,2.36688932]
[1768487461861,2.33308809,145.28,145.23,2.36688932]
[1768487462281,2.33308809,145.26,145.22,12.56]
[1768487462479,2.33308809,145.26,145.22,25.96126495]
[1768487462672,2.33308809,145.29,145.25,6.51548515]
[1768487462985,2.33308809,145.29,145.25,8.88237447]
[1768487463160,2.33308809,145.33,145.28,8.88237447]
[1768487464191,2.33308809,145.3,145.24,2.36688932]
[1768487464389,2.33308809,145.27,145.22,2.36688932]
[1768487464664,6.51548515,145.26,145.2,14.92688932]
[1768487464893,2.33308809,145.25,145.18,2.36688932]
[1768487465199,2.33308809,145.22,145.17,2.36688932]
[1768487465566,2.33308809,145.21,145.17,6.51548515]
[1768487465796,2.33308809,145.23,145.18,6.51548515]
[1768487466090,2.33308809,145.23,145.19,6.51548515]
[1768487466290,2.33308809,145.27,145.22,6.51548515]
[1768487466495,15.73264485,145.27,145.22,8.88237447]
[1768487466680,2.33308809,145.29,145.24,6.51548515]
[1768487466888,8.84857324,145.29,145.24,6.51548515]
[1768487467078,2.33308809,145.28,145.23,2.36688932]
[1768487467381,2.33308809,145.28,145.23,6.51548515]
[1768487467690,2.33308809,145.26,145.22,6.51548515]
[1768487467880,2.33308809,145.25,145.19,14.92688932]
[1768487468194,9.21696342,145.27,145.22,6.51548515]
[1768487468393,2.33308809,145.24,145.2,6.88695579]
[1768487468582,2.33308809,145.24,145.21,6.88646052]
[1768487468885,2.33308809,145.26,145.22,6.51548515]
[1768487469089,2.33308809,145.24,145.19,12.56]
[1768487469293,2.33308809,145.24,145.2,6.51548515]
[1768487469496,2.33308809,145.24,145.21,6.51548515]
[1768487469662,2.33308809,145.3,145.23,15.7679644]
[1768487469862,8.84857324,145.29,145.24,6.51548515]
[1768487470079,2.33308809,145.28,145.24,6.51548515]
[1768487470282,2.33308809,145.27,145.22,6.88610384]
[1768487470489,2.33308809,145.27,145.22,13.40158899]
[1768487470668,2.33308809,145.26,145.2,12.56]
[1768487470869,2.33308809,145.22,145.17,19.44832916]
[1768487471080,2.33308809,145.22,145.19,6.51548515]
[1768487471271,2.33308809,145.22,145.19,13.40297394]
[1768487471470,2.33308809,145.24,145.18,6.88788542]
[1768487471792,0.14216157,145.27,145.19,6.88749824]
[1768487471793,2.33308809,145.23,145.19,6.88749824]
[1768487471996,2.33308809,145.22,145.18,6.88783726]
[1768487472292,2.33308809,145.22,145.18,13.40332241]
[1768487472774,2.33308809,145.21,145.17,13.40392315]
[1768487472975,2.33308809,145.2,145.14,29.78439937]
[1768487473186,2.33308809,145.2,145.16,6.51548515]
[1768487473374,2.33308809,145.2,145.16,10.5669186]
[1768487473570,2.33308809,145.2,145.17,6.88803741]
[1768487474082,2.33308809,145.2,145.16,6.88880298]
[1768487474286,2.33308809,145.18,145.14,12.56]
[1768487474490,2.33308809,145.18,145.14,19.44955004]
[1768487474672,2.33308809,145.17,145.12,2.36688932]
[1768487474994,2.33308809,145.15,145.12,6.89050193]
[1768487475287,2.33308809,145.15,145.13,6.89020064]
[1768487475490,2.33308809,145.17,145.13,6.89020064]
[1768487475790,2.33308809,145.18,145.14,6.88969543]
[1768487476494,2.33308809,145.18,145.13,19.82404879]
[1768487476687,12.90000669,145.17,145.11,2.36688932]
[1768487476886,2.33308809,145.17,145.11,12.93380792]
[1768487477193,12.90000669,145.17,145.13,6.89035418]
[1768487477388,12.90000669,145.17,145.12,6.8907477]
[1768487477589,12.90000669,145.16,145.12,6.8907477]
[1768487477882,2.33308809,145.16,145.13,6.89007178]
[1768487478286,2.33308809,145.16,145.13,17.45699038]
[1768487478487,10.5669186,145.2,145.15,9.25631405]
[1768487478797,10.5669186,145.21,145.15,19.82323265]
[1768487478978,10.5669186,145.2,145.15,19.82323265]
[1768487479184,10.5669186,145.19,145.13,2.36688932]
[1768487479489,0.14216157,145.21,145.12,32.38447578]
[1768487479690,10.5669186,145.17,145.12,9.25755718]
[1768487480076,10.5669186,145.16,145.11,6.8913174]
[1768487480370,12.90000669,145.12,145.08,6.8926752]
[1768487480582,2.33308809,145.12,145.08,6.8926752]
[1768487480782,2.33308809,145.12,145.08,17.4595938]
[1768487481188,12.8936358,145.14,145.08,19.737118]
[1768487481389,12.8936358,145.11,145.05,2.2775242]
[1768487481590,12.8936358,145.11,145.06,6.89360474]
[1768487481778,12.8936358,145.08,145.03,2.4775242]
[1768487482094,2.3267172,145.08,145.05,6.89398973]
[1768487482782,6.89152686,145.11,145.05,6.89398973]
[1768487483106,10.5669186,145.09,145.05,6.89398973]
[1768487483315,10.5669186,145.09,145.03,30.28157429]
[1768487484287,10.5669186,145.08,145.04,6.89439204]
[1768487484675,17.45966742,145.08,145.03,2.4775242]
[1768487484882,19.71439203,145.08,145.03,2.4775242]
[1768487485122,19.71439203,145.08,145.03,13.0444428]
[1768487485405,12.82164321,145.06,145.03,0.2]
[1768487486009,2.25472461,145.05,145.02,52.0245297]
[1768487486196,10.5669186,145.03,145.02,47.8504632]
[1768487486380,10.5669186,145.03,144.97,2.25729879]
[1768487486576,10.5669186,144.99,144.96,3.5831422]
[1768487486780,10.5669186,145.0,144.96,6.89845358]
[1768487486992,0.16652517,145.03,144.96,17.46502989]
[1768487487197,10.5669186,145.01,144.96,6.89811129]
[1768487487709,10.5669186,145.0,144.95,19.72298179]
[1768487487912,0.14216157,145.03,144.97,2.25729879]
[1768487488094,10.5669186,145.02,144.98,2.45729879]
[1768487488298,10.5669186,145.02,144.98,0.2]
[1768487488497,10.5669186,145.02,144.98,7.09736355]
[1768487488699,10.5669186,145.01,144.98,0.2]
[1768487489096,10.50691861,144.99,144.94,2.25729879]
[1768487489311,10.5669186,144.98,144.94,2.25729879]
[1768487489616,10.5669186,144.98,144.92,12.82421739]
[1768487489780,10.5669186,144.97,144.92,12.82421739]
[1768487489986,10.5669186,144.97,144.92,2.25729879]
[1768487490184,10.5669186,144.96,144.9,2.25729879]
[1768487490409,12.56,144.97,144.9,10.5669186]
[1768487490585,8.17089016,145.0,144.95,2.25729879]
[1768487490794,8.17089016,145.0,144.95,9.15618502]
[1768487490993,1.27418994,145.0,144.96,2.25729879]
[1768487491201,1.27418994,145.0,144.96,12.82421739]
[1768487491506,1.27418994,145.0,144.99,12.82421739]
[1768487491684,10.61546986,145.05,144.99,12.82421739]
[1768487491886,0.04855126,145.07,145.01,12.82421739]
[1768487492190,1.33789935,145.07,145.03,2.25729879]
[1768487492397,1.33789935,145.07,145.02,10.5669186]
[1768487492603,0.08406571,145.12,145.06,10.5669186]
[1768487492802,10.5669186,145.11,145.05,2.25729879]
[1768487492996,10.5669186,145.1,145.05,12.82421739]
[1768487493202,24.20203704,145.12,145.05,19.71828976]
[1768487493435,6.89047187,145.13,145.07,12.82421739]
[1768487493713,6.89047187,145.13,145.08,10.5669186]
[1768487494014,10.5669186,145.12,145.07,2.25729879]
[1768487494313,10.5669186,145.08,145.02,6.89547686]
[1768487494488,10.5669186,145.06,145.01,12.82421739]
[1768487494689,17.46126023,145.05,144.99,21.73401049]
[1768487495003,17.46126023,145.05,145.0,12.82421739]
[1768487495205,17.46126023,145.05,145.0,2.25729879]
[1768487495710,10.5669186,145.07,145.02,12.82421739]
[1768487496088,10.5669186,145.07,145.02,2.25729879]
[1768487496292,10.5669186,145.05,145.0,2.25729879]
[1768487496505,10.5669186,145.06,145.01,2.25729879]
[1768487496895,10.5669186,145.06,145.01,19.72000893]
[1768487497302,17.46036866,145.07,145.02,2.25729879]
[1768487497626,10.5669186,145.08,145.04,2.25729879]
[1768487498125,10.5669186,145.07,145.02,12.82421739]
[1768487498725,10.5669186,145.08,145.02,12.82421739]
[1768487498898,17.45979409,145.08,145.02,9.15250167]
[1768487499098,17.45979409,145.08,145.02,19.71942027]
[1768487499324,17.45979409,145.08,145.02,9.15250167]
[1768487499513,17.45979409,145.08,145.02,19.71942027]
[1768487499718,17.45979409,145.08,145.03,2.25729879]
[1768487500038,10.5669186,145.06,145.01,2.25729879]
[1768487500200,10.5669186,145.05,145.01,2.25729879]
[1768487500820,10.5669186,145.03,144.97,9.15494102]
[1768487501123,10.5669186,145.03,144.98,2.25729879]
[1768487501728,0.34755426,145.05,144.98,2.25729879]
[1768487501931,10.5669186,145.01,144.96,2.25729879]
[1768487502098,0.37865608,145.03,144.94,12.82421739]
[1768487502099,10.5669186,144.99,144.94,12.82421739]
[1768487502302,10.5669186,144.99,144.95,2.25729879]
[1768487502499,11.62795573,145.0,144.93,19.7237827]
[1768487502727,11.62795573,145.0,144.95,19.72269816]
[1768487502728,4.26200336,145.0,144.95,19.72269816]
[1768487503029,4.26200336,145.0,144.97,2.25729879]
[1768487503618,4.20200337,145.0,144.97,2.25729879]
[1768487504633,10.5669186,144.99,144.95,2.25729879]
[1768487505610,10.5669186,144.98,144.92,9.15760012]
[1768487505813,10.5669186,144.98,144.93,2.25729879]
[1768487506014,17.46482922,144.98,144.93,2.25729879]
[1768487506735,17.46482922,144.98,144.93,12.82421739]
[1768487507328,10.5669186,144.96,144.91,12.82421739]
[1768487507837,6.89791062,144.98,144.94,2.25729879]
[1768487508042,17.46482922,144.98,144.94,2.25729879]
[1768487508256,6.89702738,144.99,144.95,12.82421739]
[1768487508536,17.46394598,144.99,144.95,2.25729879]
[1768487508745,10.5669186,144.98,144.93,12.82421739]
[1768487508917,17.46394598,144.99,144.94,10.5669186]
[1768487509941,17.46394598,144.99,144.94,12.82421739]
[1768487510348,17.46394598,144.99,144.94,2.25729879]
[1768487510528,10.5669186,144.98,144.94,2.25729879]
[1768487510843,10.5669186,144.97,144.92,2.65373404]
[1768487511214,10.5669186,144.96,144.92,2.65373404]
[1768487511414,10.5669186,144.97,144.92,2.65373404]
[1768487511914,17.46522126,144.97,144.92,2.65373404]
[1768487512219,17.46522126,144.97,144.92,13.22065264]
[1768487512423,17.46522126,144.97,144.92,2.65373404]
[1768487512935,30.49508889,144.98,144.92,2.65373404]
[1768487512936,4.20200337,145.0,144.97,2.65373404]
[1768487513811,4.20200337,145.0,144.97,13.22065264]
[1768487514010,11.09870142,145.0,144.93,2.65373404]
[1768487514229,10.5669186,144.99,144.93,9.55348059]
[1768487514435,10.5669186,144.98,144.93,9.55348059]
[1768487514637,10.5669186,144.98,144.93,20.12039919]
[1768487515338,29.11845684,145.0,144.93,20.12039919]